[Event "Slovakia Open 2022"]
[Site "Bratislava"]
[Date "2022.09.30"]
[Round "1.21"]
[White "Kijac, Miroslav"]
[Black "Dubnicka, Ferdinand"]
[Result "1-0"]
[ECO "E91"]
[WhiteElo "2078"]
[BlackElo "1494"]
[Annotator "TA"]
[PlyCount "105"]
[EventDate "2022.09.30"]
[EventCountry "SVK"]
[SourceTitle "playchess.com"]
[Source "ChessBase"]
[SourceQuality "1"]
[TimeControl "2700+10"]

{[%evp 16,105,60,58,75,69,88,64,60,57,133,75,79,75,81,73,78,79,87,64,74,22,88,51,93,64,81,64,67,61,62,53,87,74,66,66,116,57,108,81,238,214,264,225,214,215,245,235,233,235,256,242,302,293,428,441,730,731,710,698,724,725,735,715,939,862,886,864,956,963,1034,1025,1143,1135,1154,1144,1122,1178,1265,1243,1309,1267,1264,1209,1328,1266,1682,1587,1603,1545,1562,462]} 1. d4 {[%emt 0:00:04]} Nf6 {[%emt 0:00:49]} 2. c4 {[%emt 0:00:10]} g6 {[%emt 0:00:10]} 3. Nc3 {[%emt 0:00:06]} c6 {[%emt 0:00:08]} 4. e4 {[%emt 0:00:12]} d6 {[%emt 0:00:03]} 5. Nf3 {[%emt 0:00:12]} Bg7 {[%emt 0:00:01]} 6. Be2 {[%emt 0:00:06]} Bg4 {[%emt 0:00:01]} 7. Be3 {[%emt 0:00:10]} O-O {[%emt 0:00:03]} 8. O-O {[%emt 0:00:11]} Nbd7 {[%emt 0:00:10]} 9. Qc2 {[%emt 0:00:39]} Re8 {[%emt 0:00:00] E91: King's Indian: Classical: 6 Be2, unusual replies including 6...c5 and 6...Bg4.} 10. Rfd1 {[%emt 0:00:23]} Qc7 {[%emt 0:00:00]} 11. Rab1 {[%emt 0:01:27]} e5 {[%emt 0:00:07] White is slightly better.} 12. d5 {[%emt 0:00:09] [#]} c5 $146 {[%emt 0:00:03]} ({Black should play} 12... Rec8 $14) ({Predecessor:} 12... cxd5 13. cxd5 a6 14. h3 Bxf3 15. Bxf3 b5 16. Rdc1 Rec8 17. Qd2 Qb7 18. g3 Rc7 {1-0 (38) Path,D (2090)-Ferenc,J (2116) Koszalin 2007}) 13. Ne1 {[%emt 0:01:12]} (13. h3 $142 Bxf3 14. Bxf3) 13... Bxe2 $16 {[%emt 0:00:04]} 14. Qxe2 {[%emt 0:00:01]} a6 {[%emt 0:00:01]} 15. a3 {[%emt 0:00:43]} Re7 {[%emt 0:00:02]} 16. Rdc1 {[%emt 0:01:16]} Rf8 {[%emt 0:00:01]} 17. Nd3 {[%emt 0:01:30]} Nh5 {[%emt 0:00:14]} 18. Nd1 {[%emt 0:04:56]} (18. Re1 $16) 18... Rc8 {[%emt 0:00:09]} (18... f5 $11 {keeps the balance.}) 19. b4 {[%emt 0:00:13]} b6 {[%emt 0:00:07]} 20. Rb3 {[%emt 0:00:35]} Qd8 {[%emt 0:00:03]} 21. bxc5 {[%emt 0:00:05]} bxc5 {[%emt 0:00:02]} 22. Rcb1 $36 {[%emt 0:00:17][%mdl 2048] White has some pressure.} Rb8 {[%emt 0:00:07]} 23. Bg5 {[%emt 0:01:18]} f6 {[%emt 0:00:02] [#] White must now prevent ...Rxb3.} 24. Be3 {[%emt 0:00:06]} Rxb3 {[%emt 0:00:04]} 25. Rxb3 {[%emt 0:00:10]} Qc8 {[%emt 0:00:03]} (25... Qe8 $14) 26. Qb2 {[%emt 0:00:23] White is much more active.} (26. g4 $16 Nf4 27. Nxf4 (27. Bxf4 exf4 28. Nxf4 Nf8 $16) 27... exf4 28. Bxf4) 26... Kf7 {[%emt 0:00:27]} ({Black should try} 26... f5 $14) 27. f3 {[%emt 0:00:48]} g5 $2 {[%emt 0:00:04] [#] Loses the game.} (27... Kg8 $16 {was called for.}) 28. g3 {[%emt 0:00:13]} Bh6 {[%emt 0:00:14]} 29. N1f2 {[%emt 0:00:51]} Bf8 {[%emt 0:00:45]} 30. Bd2 {[%emt 0:00:19]} h6 {[%emt 0:00:04]} 31. Nd1 {[%emt 0:00:05]} Ng7 {[%emt 0:00:06]} 32. Ne3 {[%emt 0:00:03] Against f5} h5 {[%emt 0:00:01]} 33. Ba5 {[%emt 0:00:40]} Re8 {[%emt 0:00:07]} 34. Rb7 {[%emt 0:01:10]} Be7 {[%emt 0:00:06]} (34... Re7 {might work better.} 35. Bc7 Ne8) 35. Rc7 $18 {[%emt 0:02:39] White is clearly winning.} Qb8 {[%emt 0:00:43]} (35... Qd8 $142 36. Qb7 Kg8 37. Qxa6 Qa8) 36. Rxd7 {[%emt 0:00:11]} Qxb2 {[%emt 0:00:03]} 37. Nxb2 {[%emt 0:00:01]} Rb8 {[%emt 0:00:10]} 38. Nbd1 {[%emt 0:00:54]} Ke8 {[%emt 0:00:00]} 39. Ra7 {[%emt 0:00:08]} Kf7 {[%emt 0:00:24]} 40. Kf2 {[%emt 0:00:15]} Ke8 {[%emt 0:00:26]} 41. Rxa6 {[%emt 0:00:21]} Rb7 {[%emt 0:00:36]} 42. Bb6 {[%emt 0:00:51]} Kf7 {[%emt 0:00:29]} 43. a4 {[%emt 0:00:07][%cal Ba3a4,Ba4a5][%mdl 32]} Ne8 {[%emt 0:00:12]} 44. a5 {[%emt 0:00:05]} Nc7 {[%emt 0:00:02]} 45. Ra7 {[%emt 0:00:15]} Rxa7 {[%emt 0:00:01]} 46. Bxa7 {[%emt 0:00:02]} Na6 {[%emt 0:00:11]} 47. Bb6 {[%emt 0:00:13]} Ke8 {[%emt 0:00:00]} 48. Nc3 {[%emt 0:00:07]} Kd7 {[%emt 0:00:00]} 49. Nb5 {[%emt 0:00:23]} Bf8 {[%emt 0:00:05]} 50. g4 {[%emt 0:00:03]} h4 {[%emt 0:00:08]} 51. Ke2 {[%emt 0:00:15]} Be7 {[%emt 0:00:00]} 52. Nf5 {[%emt 0:00:00]} Bf8 {[%emt 0:00:00]} 53. Ne7 {[%emt 0:00:00] Weighted Error Value: White=0.17 (very precise) /Black=0.39} 1-0

[Event "Slovakia Open 2022"]
[Site "Bratislava"]
[Date "2022.09.30"]
[Round "1.22"]
[White "Malaschitz, Teodor"]
[Black "Sobek, Michal"]
[Result "0-1"]
[ECO "B34"]
[WhiteElo "1448"]
[BlackElo "2156"]
[Annotator "TA"]
[PlyCount "52"]
[EventDate "2022.09.30"]
[EventCountry "SVK"]
[SourceTitle "playchess.com"]
[Source "ChessBase"]
[SourceQuality "1"]
[TimeControl "2700+10"]

{[%evp 9,52,4,35,-16,0,-27,-25,-90,-72,-95,-89,-90,-77,-102,-50,-82,-95,-85,-88,-76,-72,-150,-97,-175,-138,-218,-31,-227,-232,-227,-219,-206,-123,-105,-17,-350,-343,-343,-356,-347,-341,-717,-719,-718,-604]} 1. e4 {[%emt 0:00:03]} c5 {[%emt 0:00:04]} 2. Nf3 {[%emt 0:00:02]} g6 {[%emt 0:00:02]} 3. d4 {[%emt 0:00:02]} cxd4 {[%emt 0:00:02]} 4. Nxd4 {[%emt 0:00:01]} Bg7 {[%emt 0:00:01]} 5. Be3 {[%emt 0:00:09]} Nc6 {[%emt 0:00:01]} 6. Nxc6 {[%emt 0:00:16] B34: Sicilian: Accelerated Dragon with 5 Nc3: sidelines.} (6. c4 $14) 6... bxc6 $11 {[%emt 0:00:01]} 7. Bd4 {[%emt 0:00:13]} Nf6 $1 {[%emt 0:00:42] 7...Nf6 is better than 7...e5.} 8. f3 {[%emt 0:00:12]} (8. Bc4 $11) 8... O-O $1 $17 {[%emt 0:00:03]} 9. Be2 {[%emt 0:00:09] [#]} d5 $146 {[%emt 0:00:05]} ({Predecessor:} 9... Ne8 10. Bxg7 Nxg7 11. Qd4 Qb6 12. Qxb6 axb6 13. Nc3 Ba6 14. Bxa6 Rxa6 15. b3 Rfa8 {0-1 (49) Van Houtte,R-De Weird,E Ostend 2008}) 10. exd5 {[%emt 0:00:09]} cxd5 {[%emt 0:00:03][%cal Oe7e5]} 11. Nc3 {[%emt 0:00:10]} Re8 {[%emt 0:00:13]} (11... Qd6 $17 12. Qd2 e5) 12. O-O {[%emt 0:00:06]} e5 {[%emt 0:00:43]} 13. Bf2 {[%emt 0:00:08]} Bb7 {[%emt 0:00:11]} 14. Bb5 {[%emt 0:00:14]} Re6 {[%emt 0:00:13]} 15. Qd2 {[%emt 0:00:59]} (15. Na4 $142) 15... Qa5 {[%emt 0:01:04]} (15... d4 $142 {Strongly threatening ...Qa5.} 16. Ne2 Rc8) 16. Qe2 {[%emt 0:01:04]} (16. Bd3 $17) 16... Nh5 {[%emt 0:04:42]} 17. Rfd1 {[%emt 0:01:51]} (17. Rab1 $17) 17... e4 $2 {[%emt 0:01:29]} (17... Nf4 18. Qf1) (17... a6 $19 {...Nf4 is the strong threat.} 18. Bd7 Nf4) 18. Bd4 $2 {[%emt 0:01:14]} ({Avoid the trap} 18. Nxd5 $2 Bxd5 19. Rxd5 Nf4 $19) (18. fxe4 $15 Bxc3 19. bxc3) 18... Bxd4+ $1 $19 {[%emt 0:01:26]} 19. Rxd4 {[%emt 0:00:20][%cal Rf3e4]} Qb6 {[%emt 0:00:02]} 20. Rad1 {[%emt 0:02:04][%cal Rf3e4]} a6 {[%emt 0:01:12]} (20... Ng7 $1 $19 {[%cal Rg7f5] aiming for ...Nf5.} 21. fxe4 Nf5 22. exf5 Rxe2 23. Bxe2 Qxb2 24. Nxd5 Bxd5 25. Rxd5 Qxa2) 21. Bd7 $17 {[%emt 0:02:00]} Re5 {[%emt 0:02:53]} (21... Re7 $1 $17 {[%cal Re7d7]} 22. Ba4 Ng7) 22. b3 $2 {[%emt 0:00:46][%mdl 8192] [#]} (22. Qe3 $11) 22... Qc7 $1 $19 {[%emt 0:01:00][%csl LRc3,LRd7]} 23. Nxd5 {[%emt 0:00:27]} Rxd5 {[%emt 0:00:06][%mdl 64] Remove Defender} ({Resist} 23... Qxd7 {[#]} 24. Nf6+ $1 {[%mdl 512]} Nxf6 25. Rxd7 Nxd7 26. Rxd7 $18) 24. Rxd5 {[%emt 0:00:02]} Bxd5 {[%emt 0:00:02]} 25. Rxd5 $2 {[%emt 0:00:03]} (25. fxe4 Bb7 26. Qc4) 25... Nf4 {[%emt 0:00:01][%csl LRd5,LRe2]} ({Wrong is} 25... Nf6 $2 26. Rd2 $19) 26. Qc4 {[%emt 0:01:47]} Nxd5 {[%emt 0:00:11] Weighted Error Value: White=0.89/Black=0.37} 0-1

[Event "Slovakia Open 2022"]
[Site "Bratislava"]
[Date "2022.09.30"]
[Round "1.23"]
[White "Bombek, Peter"]
[Black "Kostic, Ivan"]
[Result "1-0"]
[ECO "C41"]
[WhiteElo "2083"]
[BlackElo "1716"]
[Annotator "TA"]
[PlyCount "55"]
[EventDate "2022.09.30"]
[EventCountry "SVK"]
[SourceTitle "playchess.com"]
[Source "ChessBase"]
[SourceQuality "1"]
[TimeControl "2700+10"]

{[%evp 9,55,50,55,35,82,52,56,35,45,27,39,36,49,52,46,40,70,58,98,75,119,90,230,222,232,245,453,443,468,448,517,524,608,583,557,568,582,576,616,612,794,774,768,771,773,760,1102,1095]} 1. e4 {[%emt 0:00:08]} e5 {[%emt 0:00:06]} 2. Nf3 {[%emt 0:00:02]} d6 {[%emt 0:00:09]} 3. d4 {[%emt 0:00:03]} exd4 {[%emt 0:00:04]} 4. Nxd4 {[%emt 0:00:02]} h6 {[%emt 0:00:27]} 5. Nc3 {[%emt 0:00:10]} Nf6 {[%emt 0:00:03]} 6. Bc4 {[%emt 0:00:05] C41: Philidor Defence.} g6 {[%emt 0:00:41]} (6... Be7 $14) 7. O-O {[%emt 0:00:12]} Bg7 {[%emt 0:00:03]} 8. h3 {[%emt 0:00:46] White is slightly better.} O-O {[%emt 0:00:31] [#]} 9. Bf4 $146 {[%emt 0:00:18]} ({Predecessor:} 9. Be3 Bd7 10. Bd5 Nxd5 11. exd5 Re8 12. Re1 Bc8 13. Ndb5 a6 14. Nd4 Nd7 15. Qd3 {0-1 (33) Sakhilgareeva,G-Malchikova,S Oktjabrsky 2004}) 9... Bd7 {[%emt 0:00:54]} 10. Qd2 {[%emt 0:00:06]} (10. e5 Nh5 11. Be3 dxe5 $11) 10... Kh7 {[%emt 0:00:07]} 11. Rfe1 {[%emt 0:02:08]} Nc6 {[%emt 0:00:48]} 12. Nf3 {[%emt 0:00:04]} Ng8 {[%emt 0:00:49]} 13. Rad1 {[%emt 0:00:17] White has more active pieces. The black rooks are badly placed.} Na5 {[%emt 0:03:32]} 14. Bf1 {[%emt 0:00:30] [#] And now Nd5 would win.} Be6 {[%emt 0:00:27]} 15. Nd4 {[%emt 0:01:23]} Nc4 {[%emt 0:02:50] This move loses the game for Black.} (15... Nc6 $16) 16. Nxe6 $18 {[%emt 0:01:07]} Nxd2 {[%emt 0:00:29]} 17. Nxd8 {[%emt 0:00:05]} Raxd8 $2 {[%emt 0:00:08] [#]} (17... Nxf1 {is a better defense.} 18. Nxb7 (18. Rxf1 Rfxd8 19. Rd3 Ne7 $11) 18... Rfb8 19. Nxd6 (19. Kxf1 Rxb7 20. Bc1 Bxc3 $14) 19... cxd6) 18. Rxd2 {[%emt 0:00:14] White is clearly winning.} a6 {[%emt 0:06:08]} 19. a4 {[%emt 0:00:20]} Bxc3 {[%emt 0:00:00]} 20. bxc3 {[%emt 0:01:12]} f5 {[%emt 0:00:01]} 21. exf5 {[%emt 0:00:10]} Rxf5 {[%emt 0:00:10]} 22. Bg3 {[%emt 0:00:10]} Ra5 {[%emt 0:00:10]} 23. Rd4 {[%emt 0:00:10]} Rc5 {[%emt 0:00:07]} 24. Rc4 {[%emt 0:00:12]} c6 {[%emt 0:00:25]} 25. Rxc5 {[%emt 0:00:44]} dxc5 {[%emt 0:00:02]} 26. Bd3 {[%emt 0:00:21]} Rd7 {[%emt 0:00:29]} 27. Re6 {[%emt 0:00:13]} Rg7 {[%emt 0:00:03]} 28. Be5 {[%emt 0:00:17] Weighted Error Value: White=0.13 (very precise) /Black=0.49} 1-0

[Event "Slovakia Open 2022"]
[Site "Bratislava"]
[Date "2022.09.30"]
[Round "1.24"]
[White "Dolnik, Michal"]
[Black "Babula, Vlastimil"]
[Result "0-1"]
[ECO "B72"]
[WhiteElo "1485"]
[BlackElo "2574"]
[Annotator "TA"]
[PlyCount "56"]
[EventDate "2022.09.30"]
[EventCountry "SVK"]
[SourceTitle "playchess.com"]
[Source "ChessBase"]
[SourceQuality "1"]
[TimeControl "2700+10"]

{[%evp 17,56,0,39,-65,-17,-43,-39,-38,-22,-17,-22,-108,-99,-97,-64,-228,-39,-57,-26,-23,-10,-73,-81,-81,-74,-158,-95,-568,-279,-254,-254,-1050,-827,-5397,-5365,-29995,-29989,-29996,-29989,-29990,-29979]} 1. e4 {[%emt 0:00:06]} c5 {[%emt 0:00:01]} 2. Nf3 {[%emt 0:00:27]} d6 {[%emt 0:00:01]} 3. d4 {[%emt 0:05:52]} cxd4 {[%emt 0:00:03]} 4. Nxd4 {[%emt 0:00:09]} Nf6 {[%emt 0:00:02]} 5. Nc3 {[%emt 0:00:04]} Nc6 {[%emt 0:00:09]} 6. Be2 {[%emt 0:02:29]} g6 {[%emt 0:00:40]} 7. Be3 {[%emt 0:00:12]} Bg7 {[%emt 0:00:03]} 8. Qd2 {[%emt 0:00:54] is more profitable than 8.0-0 at the moment.} O-O {[%emt 0:00:07]} 9. h4 {[%emt 0:03:12]} h5 {[%emt 0:01:15] [#]} 10. Rg1 $146 {[%emt 0:03:42] B72: Sicilian Dragon: 6 Be3, lines with h3+Bc4 and sidelines.} (10. O-O-O $1 $14) ({Predecessor:} 10. O-O-O Bd7 11. Kb1 Rc8 12. f3 Nxd4 13. Bxd4 b5 14. Bxb5 Rb8 15. Bxd7 Qxd7 16. b3 a5 17. a4 Rfc8 {0-1 (32) Guzman,C (2261)-Deviprasath,S (2290) Chess.com INT 2022}) 10... Ng4 {[%emt 0:01:24]} (10... d5 $1 $15) 11. Nxc6 {[%emt 0:03:06]} bxc6 {[%emt 0:00:03]} 12. Bxg4 {[%emt 0:00:43] Black is slightly better.} Bxg4 {[%emt 0:00:40]} 13. f3 {[%emt 0:00:12]} Be6 {[%emt 0:01:49]} 14. g4 {[%emt 0:01:12]} (14. Bd4 $11 {remains equal.}) 14... hxg4 $17 {[%emt 0:01:22]} 15. fxg4 {[%emt 0:00:25]} Qa5 {[%emt 0:00:07] aiming for ...Rfb8.} 16. Bh6 $2 {[%emt 0:01:18] [#]} ({White should play} 16. Bd4 $1 $15) 16... Bxc3 $2 {[%emt 0:03:07]} (16... Bxh6 $1 $19 17. Qxh6 Rab8) 17. bxc3 $15 {[%emt 0:01:25]} Rfd8 $36 {[%emt 0:00:53][%mdl 2048] Black is pushing.} (17... Rfb8 $5 {[%cal Rg8h7]}) 18. h5 {[%emt 0:00:55]} Qe5 {[%emt 0:02:34]} 19. hxg6 {[%emt 0:03:59]} (19. Qe3 $11 {keeps the balance.}) 19... Qxe4+ $17 {[%emt 0:00:18]} 20. Be3 {[%emt 0:02:12]} fxg6 {[%emt 0:00:38]} 21. Rb1 {[%emt 0:01:18]} (21. Qd3 $142 Qxd3 22. cxd3) 21... c5 {[%emt 0:01:12] Black is more active.} (21... Bxg4 $2 22. Rb4 Qd5 23. Rd4 $18) (21... Bd5 $142 {And now ...c5 would win.} 22. Rb4 Qe6) 22. Rf1 $2 {[%emt 0:03:51][%mdl 8192] [#]} (22. Qd3 $17 Qxd3 23. cxd3) 22... Rab8 {[%emt 0:00:13]} (22... Bc4 $142 23. Rg1 Rdb8) 23. Rxb8 $19 {[%emt 0:01:03]} Rxb8 {[%emt 0:00:02][%cal Bd8b8,Bb8b1,Bb1d1][%mdl 32]} 24. Rf4 $2 {[%emt 0:00:48]} (24. Qd3 Rb1+ 25. Kf2 Rxf1+ 26. Qxf1) 24... Rb1+ {[%emt 0:00:08]} 25. Ke2 {[%emt 0:00:15]} Qg2+ {[%emt 0:02:36]} 26. Rf2 {[%emt 0:00:17]} Bxg4+ {[%emt 0:00:05] Black mates.} 27. Kd3 {[%emt 0:00:35]} Qd5+ {[%emt 0:00:03]} 28. Bd4 {[%emt 0:00:54]} Rd1 {[%emt 0:00:20] Weighted Error Value: White=1.30/Black=0.64} 0-1

[Event "Slovakia Open 2022"]
[Site "Bratislava"]
[Date "2022.09.30"]
[Round "1.25"]
[White "Merva, Frantisek"]
[Black "Hasala, Richard"]
[Result "0-1"]
[ECO "D04"]
[WhiteElo "1981"]
[BlackElo "1537"]
[Annotator "TA"]
[PlyCount "56"]
[EventDate "2022.09.30"]
[EventCountry "SVK"]
[SourceTitle "playchess.com"]
[Source "ChessBase"]
[SourceQuality "1"]
[TimeControl "2700+10"]

{[%evp 9,56,30,29,14,50,56,53,51,106,76,175,174,131,79,166,162,158,154,209,183,180,106,88,72,87,78,109,52,90,35,39,27,26,12,22,16,93,62,54,0,82,0,0,-16,-23,-129,-122,-906,-917]} 1. d4 {[%emt 0:00:10]} Nf6 {[%emt 0:00:06]} 2. Nf3 {[%emt 0:00:27]} d5 {[%emt 0:00:08]} 3. e3 {[%emt 0:00:08]} Bg4 {[%emt 0:02:28]} 4. h3 {[%emt 0:00:11]} Bh5 {[%emt 0:00:06]} 5. c4 {[%emt 0:00:01]} e6 {[%emt 0:00:08]} 6. Qb3 {[%emt 0:00:10] D04: Colle System.} b6 {[%emt 0:03:20]} 7. Ne5 {[%emt 0:00:11]} c6 {[%emt 0:05:26]} ({Less strong is} 7... Nbd7 8. cxd5 exd5 9. g4 $16) 8. Nc3 {[%emt 0:00:41] [#] White is slightly better.} Qc7 $146 {[%emt 0:01:12]} (8... Bd6 $14) ({Predecessor:} 8... Bd6 9. g4 Bg6 10. Nxg6 hxg6 11. Bg2 a5 12. Bd2 Nbd7 13. Rc1 Rc8 14. g5 Nh5 15. h4 O-O 16. Bf3 Qe7 17. cxd5 {½-½ (17) Vujadinovic,M (2218)-Efendiyev,E (2310) IECG email 1999}) 9. cxd5 {[%emt 0:02:38]} exd5 {[%emt 0:00:24]} (9... Nxd5 $16 10. g4 Bg6) 10. g4 $18 {[%emt 0:07:29]} Bg6 {[%emt 0:00:02]} 11. h4 {[%emt 0:00:01]} (11. g5 $142 Nfd7 12. Nxg6 hxg6 13. e4) 11... Nfd7 {[%emt 0:11:28]} (11... Bd6 $16) 12. Nxg6 {[%emt 0:03:26]} hxg6 {[%emt 0:00:12]} 13. Bd2 {[%emt 0:00:09][%cal Oc3d5]} Be7 {[%emt 0:00:46]} (13... a5 $16) 14. h5 {[%emt 0:00:01][%cal Oc3d5]} gxh5 {[%emt 0:00:19] [#]} 15. gxh5 {[%emt 0:01:06]} ({Not} 15. Rxh5 Rxh5 16. gxh5 Nf6 $11) (15. Nxd5 $1 $18 {[%mdl 512]} cxd5 16. Qxd5) 15... Nf6 $16 {[%emt 0:00:14]} 16. Be2 {[%emt 0:00:06]} Nbd7 {[%emt 0:01:50][%cal Bb8d7,Bd7f8,Bf8e6][%mdl 32]} 17. O-O-O $1 {[%emt 0:00:09]} O-O-O {[%emt 0:00:05]} 18. Kb1 {[%emt 0:00:04]} (18. Rdg1 $16) 18... Kb8 {[%emt 0:03:52]} 19. Bf3 {[%emt 0:01:49]} ({White should try} 19. Rdg1 $16) 19... Nf8 $14 {[%emt 0:01:17]} 20. Rc1 {[%emt 0:00:50]} Ne6 {[%emt 0:00:29]} 21. Rhg1 {[%emt 0:02:43]} Qd6 {[%emt 0:01:09]} 22. Na4 {[%emt 0:00:01][%cal Oa4b6] aiming for Nxb6!} Rc8 {[%emt 0:01:14] [#]} (22... Qd7 $11) 23. Nxb6 $1 {[%emt 0:05:39]} axb6 {[%emt 0:02:28]} 24. Qxb6+ {[%emt 0:00:03]} Ka8 {[%emt 0:00:10] [#]} 25. Qa5+ {[%emt 0:00:02]} (25. Rxg7 $1 $16 {Qa6+ is the strong threat.} Rhf8 {[#]} 26. Rc3 $1) 25... Kb8 {[%emt 0:00:00]} 26. Rc3 {[%emt 0:00:02] White threatens Rb3+ and mate.} ({Don't do} 26. Qb6+ $6 Ka8 $16) 26... Rc7 $1 {[%emt 0:00:58]} (26... Qb4 $2 27. Rb3 Qxb3 28. axb3 $18) 27. Rb3+ {[%emt 0:00:04]} (27. Qb6+ $11 Rb7 28. Qxc6) 27... Rb7 $17 {[%emt 0:00:02]} 28. Ra3 {[%emt 0:00:15][%mdl 8192]} Qxa3 {[%emt 0:00:21] Weighted Error Value: White=0.53/Black=0.27 (precise)} 0-1

[Event "Slovakia Open 2022"]
[Site "Bratislava"]
[Date "2022.09.30"]
[Round "1.26"]
[White "Rehacek, Jan"]
[Black "Mikulas, Dusan"]
[Result "0-1"]
[ECO "D02"]
[WhiteElo "1342"]
[BlackElo "2047"]
[Annotator "TA"]
[PlyCount "49"]
[EventDate "2022.09.30"]
[EventCountry "SVK"]
[SourceTitle "playchess.com"]
[Source "ChessBase"]
[SourceQuality "1"]
[TimeControl "2700+10"]

{[%evp 9,49,2,27,12,10,8,16,0,0,-14,-10,-14,-8,-15,-13,-16,-1,-12,-2,-4,-14,-15,0,-33,-24,-33,-19,-37,-27,-52,-34,-45,-48,-76,-54,-71,-73,-79,-60,-98,-91,-29999]} 1. d4 {[%emt 0:00:07]} d5 {[%emt 0:00:45]} 2. Bf4 {[%emt 0:00:11]} Nf6 {[%emt 0:00:06]} 3. Nf3 {[%emt 0:00:17]} e6 {[%emt 0:00:06]} 4. e3 {[%emt 0:00:15]} c5 {[%emt 0:00:03]} 5. c3 {[%emt 0:00:16]} b6 {[%emt 0:00:12]} 6. Nbd2 {[%emt 0:00:38] D02: 1 d4 d5 2 Nf3 sidelines, including 2...Nf6 3 g3 and 2...Nf6 3 Bf4.} Bb7 {[%emt 0:00:14]} 7. h3 {[%emt 0:00:25]} Bd6 {[%emt 0:00:07]} 8. Bxd6 {[%emt 0:00:12] The position is equal.} Qxd6 {[%emt 0:00:01]} 9. Be2 {[%emt 0:00:59]} O-O {[%emt 0:00:04]} 10. O-O {[%emt 0:00:18]} Nbd7 {[%emt 0:00:02]} 11. Re1 {[%emt 0:01:02] [#]} Rad8 $146 {[%emt 0:02:39]} ({Predecessor:} 11... e5 12. Nh2 e4 13. Ng4 Nxg4 14. Bxg4 f5 15. Be2 f4 16. exf4 Qxf4 17. Rf1 Bc6 {½-½ (30) Baier,P (1712)-Haakert,K (1887) Bad Neuenahr 2014}) 12. Bd3 {[%emt 0:01:29]} e5 {[%emt 0:00:30]} 13. dxe5 {[%emt 0:01:50]} Nxe5 {[%emt 0:00:02]} 14. Nxe5 {[%emt 0:00:11]} Qxe5 {[%emt 0:00:02]} 15. Nf3 {[%emt 0:00:52]} Qc7 {[%emt 0:03:20]} 16. Bc2 {[%emt 0:03:15]} Ne4 {[%emt 0:02:32]} 17. Qe2 {[%emt 0:02:05]} Qe7 {[%emt 0:00:21]} 18. Red1 {[%emt 0:02:19]} Rd6 {[%emt 0:01:40]} 19. Bxe4 {[%emt 0:01:52]} Qxe4 {[%emt 0:00:38]} 20. Rd2 {[%emt 0:04:13]} Rg6 {[%emt 0:03:15][%cal Od5d4]} 21. Rad1 {[%emt 0:03:16]} d4 {[%emt 0:01:05]} 22. Kh1 {[%emt 0:03:11][%cal Rc3d4]} dxc3 {[%emt 0:08:09] Black is more active.} 23. bxc3 {[%emt 0:00:37]} h6 {[%emt 0:05:21]} 24. Rg1 {[%emt 0:03:48]} Qe6 {[%emt 0:01:12]} 25. Nh4 $2 {[%emt 0:01:31][%mdl 8192] Weighted Error Value: White=0.14 (very precise) /Black=0.07 (flawless)} (25. Rgd1 $17) 0-1